Cogmind - Beta 12 @@@ ROGUE MODE // 2023.04.28 @ 15:02:36 Player: Exp. Geonium Core Result: Destroyed by G-47 Trooper with Particle Gun Performance ------------- Evolutions (2) 1000 Regions Visited (10) 2000 Robots Destroyed (83) 415 Value Destroyed (2578) 2578 Prototype IDs (27) 540 Alien Tech Used (0) 0 Bonus (1875) 1875 TOTAL SCORE: 8408 Bonus ------- High Alert Combat Kills 175 Entered Garrisons 400 Used RIF Installer 1000 Aligned with FarCom 300 Cogmind --------- Core Integrity 0/550 Matter 52/300 Energy 100/100 System Corruption 2% Temperature Cool (27) Movement Core (50) Location -8/Garrison Parts ------- > --- POWER (1) -------- (None) > --- PROPULSION (4) --- (None) > --- UTILITY (4) ------ Advanced Visual Processing Unit Hacking Suite > --- WEAPON (2) ------- (None) > --- INVENTORY (5) ---- Trap Scanner Layered Light Armor Plating Relay Coupler [Grunt] (28) Trap Reconfigurator Heavy Mace Peak State ------------ > --- POWER ------------ Cooled Ion Engine > --- PROPULSION ------- Light Treads Light Treads Armored Treads Advanced Treads > --- UTILITY ---------- Large Storage Unit Advanced Visual Processing Unit Improved Salvage Targeting Computer Hacking Suite > --- WEAPON ----------- Plasma Cannon Improved Assault Rifle > --- INVENTORY -------- Cesium-ion Thruster Cesium-ion Thruster Cesium-ion Thruster Cesium-ion Thruster Medium Storage Unit Improved Salvage Targeting Computer Hardened Medium Armor Plating Trap Extractor Trap Reconfigurator Plasma Cannon Improved Assault Rifle Grenade Launcher Datajack Plasma Cutter Heavy Mace [Rating: 33] Favorites ----------- Power Cooled Ion Engine Engine Cooled Ion Engine Power Core Light Nuclear Core Propulsion Light Treads Treads Light Treads Leg Aluminum Leg Flight Unit Cesium-ion Thruster Utility Medium Storage Unit Device Improved Terrain Scanner Storage Medium Storage Unit Processor Advanced Visual Processing Unit Hackware Hacking Suite Protection Medium Armor Plating Weapon Improved Assault Rifle Energy Cannon Plasma Cannon Ballistic Gun Improved Assault Rifle Launcher Grenade Launcher Special Weapon Plasma Cutter Impact Weapon Heavy Mace Special Melee Weapon Datajack Build | -11 -10 -10 -9 -9 -9 -8 -8 -8 -8 -8 ------- Run | Jun Mat Min Mat Min Exi Min Mat Gar Mat Gar Slots Evolved 4 | . . . 2 . . . 2 . . . Power . | . . . . . . . . . . . Propulsion 2 | . . . 1 . . . 1 . . . Utility 2 | . . . 1 . . . 1 . . . Weapon . | . . . . . . . . . . . Parts Attached 113 | . 3 5 13 2 2 3 41 29 6 9 Power 12 | . 1 1 1 . . . 1 3 4 1 Engine 10 | . . 1 1 . . . 1 3 3 1 Core 2 | . 1 . . . . . . . 1 . Reactor . | . . . . . . . . . . . Propulsion 30 | . . 3 5 . . . 14 6 1 1 Treads 22 | . . 2 5 . . . 14 1 . . Leg 1 | . . 1 . . . . . . . . Wheel . | . . . . . . . . . . . Hover . | . . . . . . . . . . . Flight 7 | . . . . . . . . 5 1 1 Utility 27 | . 2 . 3 2 2 1 8 6 . 3 Device 9 | . . . . 1 1 . 1 3 . 3 Storage 3 | . 1 . . . . . 1 1 . . Processor 4 | . . . . . . 1 3 . . . Hackware 2 | . . . . . . . 1 1 . . Protection 9 | . 1 . 3 1 1 . 2 1 . . Artifact . | . . . . . . . . . . . Weapon 44 | . . 1 4 . . 2 18 14 1 4 Energy Gun . | . . . . . . . . . . . Energy Cannon 8 | . . . . . . . 4 3 . 1 Ballistic Gun 16 | . . 1 4 . . 1 9 1 . . Ballistic Cannon . | . . . . . . . . . . . Launcher 8 | . . . . . . 1 4 3 . . Special Weapon 2 | . . . . . . . . 1 . 1 Impact Weapon 6 | . . . . . . . 1 2 1 2 Slashing Weapon . | . . . . . . . . . . . Piercing Weapon . | . . . . . . . . . . . Special Melee Weapon 4 | . . . . . . . . 4 . . Unidentified Prototypes 4 | . . . 2 . . . 1 . 1 . Parts Lost 15 | . . 6 . . . . 2 2 . 5 Power 2 | . . 1 . . . . . 1 . . Propulsion 7 | . . 2 . . . . 1 . . 4 Utility 2 | . . 1 . . . . 1 . . . Weapon 4 | . . 2 . . . . . 1 . 1 Highest Loss Streak 6 | . . 6 . . . . 1 2 . 3 To Critical Strikes . | . . . . . . . . . . . Average Slot Usage (%) 95 | . 94 72 81 100 95 99 99 98 99 79 Engine 8 | . 1 2 11 11 11 11 9 8 9 6 Treads 27 | . . 18 31 33 33 33 35 15 . . Leg 1 | . 28 8 . . . . . . . . Flight 4 | . . . . . . . . 20 36 27 Device 3 | . . . . 3 2 . 3 5 9 7 Storage 9 | . 14 14 11 11 11 11 9 9 9 6 Processor 7 | . . . . . . 8 12 9 9 9 Hackware 4 | . . . . . . . 6 9 9 9 Protection 7 | . 8 4 13 18 15 13 4 2 . . Ballistic Gun 15 | . 28 18 14 22 22 22 15 2 . . Special Melee Weapon 1 | . . . . . . . . 3 9 8 Naked Turns . | . . . . . . . . . . . Heaviest Build 46 | 12 20 20 34 34 34 34 46 46 19 25 Greatest Support 82 | 20 20 40 60 60 60 60 82 80 19 19 Greatest Overweight (x) 3 | . . 3 . . . . . . . 1 Average Overweight (x) . | . . . . . . . . . . . Largest Inventory Capacity 15 | . 10 10 10 10 10 10 15 15 10 10 Average Capacity 11 | . 9 10 10 10 10 10 12 12 10 8 Most Carried 15 | . 9 10 10 10 10 10 15 15 10 10 Average Carried 10 | . 7 8 8 9 9 9 12 11 9 8 Final Capacity 15 | 8 10 10 10 10 10 10 15 10 10 5 Final Carried 15 | 6 9 8 10 10 10 10 15 10 10 5 Class Distribution -------------------- 54% | Mutant 17% | Scavenger-Skirmisher 16% | Scavenger-Mutant 6% | Scavenger-Scout 4% | Bothacker-Scout Dominant Class ---------------- Mutant | -10/Materials Mutant | -10/Mines Mutant | -9/Materials Scavenger-Mutant | -9/Mines Mutant | -9/Exiles Mutant | -8/Mines Mutant | -8/Materials Scavenger-Scout | -8/Garrison Scavenger-Scout | -8/Materials Bothacker-Scout | -8/Garrison Resources | -11 -10 -10 -9 -9 -9 -8 -8 -8 -8 -8 ----------- Run | Jun Mat Min Mat Min Exi Min Mat Gar Mat Gar Matter Collected 2021 | 200 82 53 164 149 . 75 1080 185 . 33 Remotely . | . . . . . . . . . . . Salvage Created 2756 | . 319 159 270 95 . 35 1512 328 38 . Parts 187 | . 22 9 22 4 . 5 90 33 2 . Haulers Intercepted 7 | . 1 . 2 . . . 3 . 1 . Recyclers Shooed 2 | . 1 . 1 . . . . . . . Parts Field Recycled . | . . . . . . . . . . . Retrieved Matter . | . . . . . . . . . . . Parts Self-Destructed . | . . . . . . . . . . . Prevented . | . . . . . . . . . . . Kills | -11 -10 -10 -9 -9 -9 -8 -8 -8 -8 -8 ------- Run | Jun Mat Min Mat Min Exi Min Mat Gar Mat Gar Combat Hostiles Destroyed 64 | . 5 5 2 2 . 3 35 12 . . Guns 33 | . 5 5 2 2 . 1 18 . . . Cannons 7 | . . . . . . . 4 3 . . AOE 24 | . . . . . . 2 13 9 . . Classes Destroyed 15 | . 6 1 2 1 . 1 4 . . . Worker 3 | . 1 . . . . . 2 . . . Builder 3 | . 1 . 2 . . . . . . . Tunneler 1 | . . . . . . 1 . . . . Hauler 7 | . 1 . 2 . . . 3 . 1 . Recycler 2 | . 1 . . . . . 1 . . . Mechanic 1 | . . . 1 . . . . . . . Operator 1 | . . . . . . . 1 . . . Watcher 1 | . . . 1 . . . . . . . Swarmer 22 | . 2 . . . . 3 9 8 . . Grunt 23 | . 3 2 . 1 . . 14 3 . . Brawler 3 | . . . . . . . 3 . . . Duelist 1 | . . . . 1 . . . . . . Protector 1 | . . . . . . . 1 . . . Sentry 11 | . . 2 2 . . . 6 1 . . Specialist 2 | . . . . . . . 2 . . . Best Kill Streak 8 | . 4 3 3 2 . 4 5 8 1 . Combat Bots Only 8 | . 2 3 1 2 . 3 5 8 . . Max Kills in Single Turn 3 | . 1 1 1 1 . 2 3 3 1 . Gunslinging . | . . . . . . . . . . . Exploded 3 | . . . . . . 2 3 3 . . Melee . | . . . . . . . . . . . Uniques/NPCs Destroyed 1 | . . 1 . . . . . . . . YI-UF0 (-10/Mines) Combat | -11 -10 -10 -9 -9 -9 -8 -8 -8 -8 -8 -------- Run | Jun Mat Min Mat Min Exi Min Mat Gar Mat Gar Damage Taken 3927 | . 256 575 166 144 . 52 1585 457 34 658 Core 794 | . 34 162 15 22 . 9 105 32 . 415 Absorbed by Shields 60 | . . . . . . . . 48 . 12 Core Remaining (%) 69 | 100 . 21 . . . 88 . . . . Volleys Fired 220 | . 26 14 21 6 . 4 121 26 . 2 Largest 2 | . 2 2 2 2 . 2 2 2 . 1 Hottest 103 | . 40 40 46 46 . 46 103 80 . 80 Shots Fired 369 | . 52 23 27 12 . 7 211 35 . 2 Gun 298 | . 52 23 27 12 . 6 169 9 . . Cannon 39 | . . . . . . . 28 9 . 2 Launcher 23 | . . . . . . 1 14 8 . . Special 9 | . . . . . . . . 9 . . Kinetic 298 | . 52 23 27 12 . 6 169 9 . . Thermal 48 | . . . . . . . 28 18 . 2 Explosive 23 | . . . . . . 1 14 8 . . Electromagnetic . | . . . . . . . . . . . Robot Hit Streak 20 | . 20 14 16 6 . 2 17 12 . . Robot Miss Streak 3 | . 2 2 3 1 . 1 3 1 . . Penetration Max . | . . . . . . . . . . . Secondary Targets 3 | . . 1 . . . . 2 . . . Max Gunslinging Chain 1 | . . 1 . . . . 1 . . . Shots Hit Robots 253 | . 42 19 14 5 . 2 142 27 2 . Core Hits 145 | . 20 10 10 4 . 4 75 21 . 1 Critical Kills . | . . . . . . . . . . . Critical Parts Destroyed 1 | . . . . . . . . . 1 . Critical Strikes 2 | . . . . . . . . 1 1 . Smash 1 | . . . . . . . . . 1 . Sever 1 | . . . . . . . . 1 . . Melee Attacks 12 | . . . . . . . . 5 3 4 Impact 8 | . . . . . . . . 1 3 4 Slashing . | . . . . . . . . . . . Piercing . | . . . . . . . . . . . Sneak Attacks 2 | . . . . . . . . . 2 . Combat Hostiles . | . . . . . . . . . . . Follow-up Attacks . | . . . . . . . . . . . Damage Inflicted 5376 | . 326 175 235 95 . 150 3175 969 214 37 Guns 2775 | . 320 162 215 75 . 30 1838 135 . . Cannons 491 | . . . . . . . 336 155 . . Explosions 1710 | . . . . . . 120 966 624 . . Melee 214 | . . . . . . . . . 214 . Ramming 131 | . 6 13 20 20 . . 35 . . 37 Kinetic 2775 | . 320 162 215 75 . 30 1838 135 . . Thermal 546 | . . . . . . . 336 210 . . Explosive 1710 | . . . . . . 120 966 624 . . Electromagnetic . | . . . . . . . . . . . Impact 214 | . . . . . . . . . 214 . Slashing . | . . . . . . . . . . . Piercing . | . . . . . . . . . . . Highest Corruption 9 | . 9 9 . . . . . . . 2 Average Corruption 6 | . 4 9 . . . . . . . 2 Corruption Purged . | . . . . . . . . . . . Corruption Blocked . | . . . . . . . . . . . Effects 15 | . 5 10 . . . . . . . . Message Errors 1 | . . 1 . . . . . . . . Matter Fused 6 | . 2 4 . . . . . . . . Energy Discharges 1 | . . 1 . . . . . . . . Parts Rejected 1 | . . 1 . . . . . . . . Data Loss (minor) 4 | . 2 2 . . . . . . . . Alerts 1 | . 1 . . . . . . . . . Weapon Failures 1 | . . 1 . . . . . . . . Overload Shots . | . . . . . . . . . . . Overflow Damage 250 | . . . . . . . 3 55 192 . Projectiles 6 | . . . . . . . . 6 . . Explosions 52 | . . . . . . . 3 49 . . Melee 192 | . . . . . . . . . 192 . Knockbacks 1 | . . . . 1 . . . . . . Impact 1 | . . . . 1 . . . . . . Kinetic . | . . . . . . . . . . . Secondary . | . . . . . . . . . . . Self-Inflicted Damage 142 | . . . . . . 16 26 84 . 16 Shots 9 | . . . . . . 1 3 5 . . Rammed 29 | . . 2 6 5 . . 3 . . 13 Targets Rammed 35 | . 2 2 8 5 . . 5 . . 13 Kicked 2 | . 2 . . . . . . . . . Crushed 4 | . . . 2 . . . 2 . . . Highest Temperature 193 | . 44 63 2 . . . 136 193 21 76 Average Temperature 32 | . 12 24 2 . . . 33 58 12 49 Received Heat Transfer 1142 | . 90 75 36 42 . . 657 125 27 90 Siege Activations . | . . . . . . . . . . . Robots Corrupted . | . . . . . . . . . . . Combat Hostiles . | . . . . . . . . . . . Parts Fried . | . . . . . . . . . . . Impact Corruptions 2 | . . . . . . . . . 2 . Robots Melted . | . . . . . . . . . . . Combat Hostiles . | . . . . . . . . . . . Parts Melted . | . . . . . . . . . . . Heat Transferred 1135 | . . . . . . . 650 485 . . Parts Sabotaged . | . . . . . . . . . . . Parts Stolen . | . . . . . . . . . . . Parts Stripped . | . . . . . . . . . . . Power Chain Reactions . | . . . . . . . . . . . Missiles Intercepted . | . . . . . . . . . . . Alert | -11 -10 -10 -9 -9 -9 -8 -8 -8 -8 -8 ------- Run | Jun Mat Min Mat Min Exi Min Mat Gar Mat Gar Peak Influence 700 | . 187 157 186 65 . 84 578 700 471 578 Initial 375 | . . 72 45 . . . . 375 319 306 Average 271 | . 130 117 105 11 . 64 333 547 379 412 Maximum Alert Level 3 | . . . . . . . 2 3 2 2 Low Security (%) 44 | . 100 100 100 100 . 100 24 . . . Level 1 23 | . . . . . . . 28 15 67 70 Level 2 31 | . . . . . . . 46 83 32 29 Level 3 . | . . . . . . . . . . . Level 4 . | . . . . . . . . . . . Level 5 . | . . . . . . . . . . . High Security . | . . . . . . . . . . . Max Security . | . . . . . . . . . . . Squads Dispatched 8 | . 1 . . . . . 7 . . . Investigation 2 | . 1 . . . . . 1 . . . Extermination . | . . . . . . . . . . . Reinforcement 5 | . . . . . . . 5 . . . Assault 1 | . . . . . . . 1 . . . Garrison . | . . . . . . . . . . . Intercept . | . . . . . . . . . . . Searches Triggered . | . . . . . . . . . . . Construction Impeded 2 | . . . . . . . 2 . . . Haulers Reinforced . | . . . . . . . . . . . Active Scanning Responses . | . . . . . . . . . . . Cargo Convoy Interrupts . | . . . . . . . . . . . Stealth | -11 -10 -10 -9 -9 -9 -8 -8 -8 -8 -8 --------- Run | Jun Mat Min Mat Min Exi Min Mat Gar Mat Gar Distress Signals 6 | . . . . . . . 3 . 3 . Communications Jammed . | . . . . . . . . . . . Distress Signals . | . . . . . . . . . . . Times Spotted 123 | . 8 5 7 2 . 3 58 13 10 17 Peak Tracking Total 9 | . 3 2 1 2 . 3 7 5 7 9 Tactical Retreats 11 | . 1 . . . . . 3 . 2 5 Traps | -11 -10 -10 -9 -9 -9 -8 -8 -8 -8 -8 ------- Run | Jun Mat Min Mat Min Exi Min Mat Gar Mat Gar Traps Triggered 17 | . 6 . 1 . . . 4 3 2 1 Indirectly . | . . . . . . . . . . . Trap Hack Attempts . | . . . . . . . . . . . Triggered . | . . . . . . . . . . . Disarmed . | . . . . . . . . . . . Reprogrammed . | . . . . . . . . . . . Reused 4 | . . . . . . . . . . 4 Traps Extracted 4 | . . . . 4 . . . . . . Installed 5 | . . . . . 1 . . . . 4 Triggered 4 | . . . . . . . . . . 4 Most Traps Carried 5 | . . . . 4 4 3 3 5 5 4 Machines | -11 -10 -10 -9 -9 -9 -8 -8 -8 -8 -8 ---------- Run | Jun Mat Min Mat Min Exi Min Mat Gar Mat Gar Machines Disabled 6 | . . . . 1 . . 2 1 . 2 Max in Single Turn 1 | . . . . 1 . . 1 1 . 1 Garrison Relay 2 | . . . . . . . . 1 . 1 Machines Repaired . | . . . . . . . . . . . Machines Sabotaged . | . . . . . . . . . . . Overloaded Fab Kills . | . . . . . . . . . . . Hacking | -11 -10 -10 -9 -9 -9 -8 -8 -8 -8 -8 --------- Run | Jun Mat Min Mat Min Exi Min Mat Gar Mat Gar Machines Accessed 18 | . 1 . . . 2 . 9 . 5 1 Terminals 14 | . 1 . . . . . 8 . 4 1 Fabricators . | . . . . . . . . . . . Repair Stations . | . . . . . . . . . . . Recycling Units . | . . . . . . . . . . . Scanalyzers . | . . . . . . . . . . . Garrison Access 2 | . . . . . . . 1 . 1 . Total Hacks 38 | . 1 . . . 2 . 21 . 12 2 Successful 16 | . . . . . 2 . 6 . 7 1 Failed 22 | . 1 . . . . . 15 . 5 1 Catastrophic 6 | . 1 . . . . . 4 . . 1 Database Lockouts . | . . . . . . . . . . . Manual 32 | . 1 . . . 1 . 20 . 9 1 Terminals 33 | . 1 . . . . . 20 . 10 2 Fabricators . | . . . . . . . . . . . Repair Stations . | . . . . . . . . . . . Recycling Units . | . . . . . . . . . . . Scanalyzers . | . . . . . . . . . . . Garrison Access 3 | . . . . . . . 1 . 2 . Terminal Hacks 8 | . . . . . 2 . 1 . 4 1 Record 1 | . . . . . 1 . . . . . Part Schematic 1 | . . . . . . . 1 . . . Robot Schematic 1 | . . . . . . . . . 1 . Branch Access Points 1 | . . . . . . . . . 1 . Garrison Index 1 | . . . . . . . . . 1 . Zone Layout 1 | . . . . . . . . . 1 . Garrison Registry 1 | . . . . . . . . . . 1 EX-Prototype ID Bank 1 | . . . . . 1 . . . . . Fabricator Hacks . | . . . . . . . . . . . Repair Station Hacks . | . . . . . . . . . . . Recycling Unit Hacks . | . . . . . . . . . . . Scanalyzer . | . . . . . . . . . . . Garrison Access Hacks 2 | . . . . . . . 1 . 1 . Unlock Access 2 | . . . . . . . 1 . 1 . Unauthorized Hacks 6 | . . . . . . . 4 . 2 . Terminals 6 | . . . . . . . 4 . 2 . Botnet 4 | . . . . . . . 3 . 1 . Operators 2 | . . . . . . . 1 . 1 . Fabricators . | . . . . . . . . . . . Repair Stations . | . . . . . . . . . . . Recycling Units . | . . . . . . . . . . . Scanalyzers . | . . . . . . . . . . . Garrison Access . | . . . . . . . . . . . Data Cores Recovered . | . . . . . . . . . . . Used . | . . . . . . . . . . . Hacking Detections 15 | . 1 . . . . . 8 . 5 1 Full Trace Events . | . . . . . . . . . . . Feedback Events . | . . . . . . . . . . . Feedback Blocked . | . . . . . . . . . . . Robot Schematics Acquired 1 | . . . . . . . . . 1 . Robots Built . | . . . . . . . . . . . Authchips . | . . . . . . . . . . . Time . | . . . . . . . . . . . Total Robot Build Rating . | . . . . . . . . . . . Part Schematics Acquired 1 | . . . . . . . 1 . . . Parts Built . | . . . . . . . . . . . Authchips . | . . . . . . . . . . . Time . | . . . . . . . . . . . Total Part Build Rating . | . . . . . . . . . . . Parts Repaired . | . . . . . . . . . . . Time . | . . . . . . . . . . . Parts Recycled . | . . . . . . . . . . . Recycled Matter . | . . . . . . . . . . . Retrieved Matter . | . . . . . . . . . . . Retrieved Components . | . . . . . . . . . . . Parts Scanalyzed . | . . . . . . . . . . . Part Schematics Acquired . | . . . . . . . . . . . Parts Damaged . | . . . . . . . . . . . Bothacking | -11 -10 -10 -9 -9 -9 -8 -8 -8 -8 -8 ------------ Run | Jun Mat Min Mat Min Exi Min Mat Gar Mat Gar Used RIF Installer 2 | . . . . . . . . 1 . 1 Patrol Navigation 1 | . . . . . . . . . . 1 Robots Hacked 3 | . . . . . . . . 3 . . Non-combat . | . . . . . . . . . . . Combat 3 | . . . . . . . . 3 . . Robot Hacks Applied 3 | . . . . . . . . 3 . . formatsys_high 3 | . . . . . . . . 3 . . Relay Couplers Released 8 | . . . . . . . . 3 . 5 Machine Destruction 8 | . . . . . . . . 3 . 5 Attached 1 | . . . . . . . . 1 . . Fabnet Peak Effective % . | . . . . . . . . . . . Robots Rewired . | . . . . . . . . . . . Allies Hacked . | . . . . . . . . . . . Hacks Repelled . | . . . . . . . . . . . Allies | -11 -10 -10 -9 -9 -9 -8 -8 -8 -8 -8 -------- Run | Jun Mat Min Mat Min Exi Min Mat Gar Mat Gar Total Allies 3 | . . . . . . . . 3 . . Largest Group 2 | . . . . . . . . 2 . . Highest-Rated Group 10 | . . . . . . . . 10 . . Highest-Rated Ally 5 | . . . . . . . . 5 . . Total Orders . | . . . . . . . . . . . Ally Attacks 5 | . . . . . . . . 5 . . Total Damage 30 | . . . . . . . . 30 . . Kills . | . . . . . . . . . . . Allies Corrupted . | . . . . . . . . . . . Allies Melted . | . . . . . . . . . . . Intel | -11 -10 -10 -9 -9 -9 -8 -8 -8 -8 -8 ------- Run | Jun Mat Min Mat Min Exi Min Mat Gar Mat Gar Robot Analysis Total . | . . . . . . . . . . . Derelict Logs Recovered . | . . . . . . . . . . . Drone Launches . | . . . . . . . . . . . Drone Recoveries . | . . . . . . . . . . . Exploration | -11 -10 -10 -9 -9 -9 -8 -8 -8 -8 -8 ------------- Run | Jun Mat Min Mat Min Exi Min Mat Gar Mat Gar Turns Passed 7603 | . 389 270 400 669 675 512 3500 436 124 628 Spaces Moved 3803 | 1 241 154 192 393 413 310 1032 303 348 416 Core 33 | . . 1 . . . . . . . 32 Treads 2514 | . . 99 192 393 413 310 1032 75 . . Legs 296 | 1 241 54 . . . . . . . . Wheels . | . . . . . . . . . . . Hover . | . . . . . . . . . . . Flight 960 | . . . . . . . . 228 348 384 Fastest Speed 26 | 120 120 120 160 160 160 160 156 26 27 27 Average Speed 122 | 120 120 146 160 160 160 160 158 60 27 33 Slowest Speed 200 | 120 120 200 160 160 160 160 163 162 27 110 Overloaded Moves . | . . . . . . . . . . . Propulsion Burnouts . | . . . . . . . . . . . Robots Hopped 2 | . . . . . . . . . . 2 Cave-ins Triggered . | . . . . . . . . . . . Exploration Rate (%) 49 | 2 58 31 25 70 61 82 87 48 43 40 Regions Visited 10 Branch Regions 4 Pre-discovered Areas 2 | . . . . 1 1 . . . . . Known Exits Taken 2 | . . . . . . . 1 . 1 . Unknown Exits Taken 7 | 1 1 1 1 1 1 1 . . . . Scrap Searched 3 | . . . . 1 . 2 . . . . Spaces Dug 31 | . . . . . . 9 19 3 . . Terrain Destroyed 102 | . . . . . . 9 80 13 . . Melee . | . . . . . . . . . . . Projectile 15 | . . . . . . . 15 . . . AOE 87 | . . . . . . 9 65 13 . . Terrain Rammed . | . . . . . . . . . . . Walls Destroyed . | . . . . . . . . . . . Machines Disabled . | . . . . . . . . . . . Actions | -11 -10 -10 -9 -9 -9 -8 -8 -8 -8 -8 --------- Run | Jun Mat Min Mat Min Exi Min Mat Gar Mat Gar Total 6351 | . 298 177 254 419 430 319 2677 508 374 895 Wait 1991 | . 22 . 2 8 1 . 1445 86 7 420 Move 3791 | . 240 153 191 392 412 309 1032 302 348 412 Hop 2 | . . . . . . . . . . 2 Pick Up 54 | . 3 3 9 3 7 1 13 10 2 3 Fast Attach 33 | . 2 1 8 . . 1 11 4 4 2 Attach 20 | . . 4 1 . 1 . 3 8 . 3 Detach 6 | . . . . . . . . 3 1 2 Swap 60 | . 1 . 4 2 1 2 27 17 2 4 Drop 75 | . 2 . 10 3 7 2 20 18 7 6 Fire 220 | . 26 14 21 6 . 4 121 26 . 2 Melee 12 | . . . . . . . . 5 3 4 Ram 13 | . . . . . . . . . . 13 Kick 2 | . 2 . . . . . . . . . Crush 20 | . . 2 8 5 . . 5 . . . Escape Stasis 45 | . . . . . . . . 27 . 18 Rewire 2 | . . . . . . . . 2 . . Trap 5 | . . . . . 1 . . . . 4 Miscellaneous . | . . . . . . . . . . . Route ------- -11/Junkyard -10/Materials (discovered 2 exits: [*Mat] / [*Min]) -10/Mines -9/Materials -9/Mines (discovered 4 exits: *Mat x2 / *Exi / [*Zio]) -9/Exiles -8/Mines -8/Materials (discovered 5 exits: [*Fac x2] / *Sto x2 / Gar) -8/Garrison -8/Materials (discovered 3 exits: [*Fac] / *Sto / Gar) -8/Garrison (discovered 3 exits: [*Fac x3]) History --------- Turn | Location | Event 1 | -11/Junkyard | Discovered new exit (range 0) 1 | -11/Junkyard | Entered Materials 163 | -10/Materials | Discovered new exit (range 7) 309 | -10/Materials | Build established: Mutant 372 | -10/Materials | Discovered new exit (range 16) 390 | -10/Materials | Entered Mines 461 | -10/Mines | YI-UF0 nonchalantly dropped a Grenade Launcher on the ground 488 | -10/Mines | Core integrity fell below 50% 493 | -10/Mines | Destroyed YI-UF0 516 | -10/Mines | Lost 6 parts (1p2n1u2w) 653 | -10/Mines | Discovered new exit (range 5) 660 | -10/Mines | Entered Materials 660 | -9/Materials | Evolved 2 slots: Propulsion x1, Utility x1 975 | -9/Materials | Discovered new exit (range 13) 1060 | -9/Materials | Entered Mines 1138 | -9/Mines | A Derelict revealed a hidden shortcut to a safe place 1312 | -9/Mines | Build established: Scavenger-Mutant 1541 | -9/Mines | Discovered new exit (range 9) 1589 | -9/Mines | Discovered new exit (range 5) 1689 | -9/Mines | Learned location of Storage (-8) 1723 | -9/Mines | Deemed a non-threat by the Exiles lab entrance 1723 | -9/Mines | Discovered new exit (range 5) 1729 | -9/Mines | Entered Exiles 1769 | -9/Exiles | Met 8R-AWN 1795 | -9/Exiles | Met EX-HEX 1813 | -9/Exiles | Warned about trapping Exiles lab 1866 | -9/Exiles | Met EX-DEC 1872 | -9/Exiles | Learned location of Zion (-7) 2111 | -9/Exiles | Build established: Mutant 2172 | -9/Exiles | Met EX-BIN 2190 | -9/Exiles | Aligned with FarCom system 2192 | -9/Exiles | Given EX-Vault access code 2229 | -9/Exiles | Opened EX-Vault 2241 | -9/Exiles | Found Trap Reconfigurator 2278 | -9/Exiles | Warned to stay clear of 0b10 Research branches 2386 | -9/Exiles | Discovered new exit (range 11) 2404 | -9/Exiles | Left Exiles lab with Trap Reconfigurator 2404 | -9/Exiles | Entered Mines 2486 | -8/Mines | Build established: Scavenger-Mutant 2819 | -8/Mines | Build established: Mutant 2896 | -8/Mines | Discovered new exit (range 8) 2916 | -8/Mines | Entered Materials 2916 | -8/Materials | Evolved 2 slots: Propulsion x1, Utility x1 3795 | -8/Materials | Discovered new exit (range 11) 4255 | -8/Materials | Discovered new exit (range 3) 4925 | -8/Materials | Discovered new exit (range 9) 5365 | -8/Materials | Build established: Scavenger-Skirmisher 6116 | -8/Materials | First assault squad dispatched 6336 | -8/Materials | Discovered new exit (range 20) 6416 | -8/Materials | Identified exit to Garrison 6416 | -8/Materials | Entered Garrison 6431 | -8/Garrison | Installed Relay Interface Framework 6482 | -8/Garrison | Triggered checkpoint 6525 | -8/Garrison | Garrison Relay disabled 6670 | -8/Garrison | Triggered checkpoint 6693 | -8/Garrison | Destroyed 8 combat bots 6834 | -8/Garrison | Discovered new exit (range 12) 6852 | -8/Garrison | Entered Materials 6887 | -8/Materials | Discovered new exit (range 20) 6911 | -8/Materials | Build established: Scavenger-Scout 6924 | -8/Materials | Identified exit to Storage 6958 | -8/Materials | Discovered new exit (range 19) 6976 | -8/Materials | Identified exit to Garrison 6976 | -8/Materials | Entered Garrison 7060 | -8/Garrison | Triggered checkpoint 7088 | -8/Garrison | Discovered new exit (range 80) 7088 | -8/Garrison | Discovered new exit (range 44) 7088 | -8/Garrison | Discovered new exit (range 57) 7091 | -8/Garrison | Garrison Relay disabled 7366 | -8/Garrison | Build established: Bothacker-Scout 7417 | -8/Garrison | Triggered checkpoint 7421 | -8/Garrison | Triggered checkpoint 7421 | -8/Garrison | Triggered checkpoint 7452 | -8/Garrison | Lost 3 parts (3n) 7563 | -8/Garrison | Core integrity fell below 50% 7598 | -8/Garrison | Expanded RIF knowledge: Patrol Navigation 7600 | -8/Garrison | Core integrity fell below 20% 7604 | -8/Garrison | Destroyed by G-47 Trooper with Particle Gun Last Messages --------------- 07561_ Knocked back. 07562_ Datajack destroyed. 07562_ Knocked back. 07565_ Detecting nearby RIF Installer. 07585_ Lgt. Ion Engine severed. 07588_ Flight Unit severed. 07588_ Slammed into C-17 Slicer. 07592_ Destabilizing: Core damaged (-5). 07593_ Slammed into C-17 Slicer. 07594_ Adv. Visual Processing Unit broken. 07594_ Destabilizing: Short circuit. 07595_ Slammed into C-17 Slicer. Initiating installation procedure... 07598_ Expanded RIF knowledge: Patrol Navigation. 07599_ Slammed into C-17 Slicer. 07601_ Slammed into P-60 Hacker. 07601_ Destabilizing: System corrupted (+1). 07602_ Slammed into P-60 Hacker. 07603_ Slammed into G-47 Trooper. 07604_ Critical hit (Burn: +37). Map ----- +----------------------------------------------------+ | # # # # ##???????????????????????? | | = ### # #????????????????????????? | | # # ## # #????????????????????????? | | ! # # # ###????????????????????????? | | = # ##########??????????????????????????? | | # #????????????#####???????????????????? | | #####????????????#"# #???????????????????? | | #????????????#" #???????????????????? | | #####?#########?#" #???????????????????? | | #?#!!+ +!!#?#" #???????????????????? | | #### #?#!!# #!!#?#"# #???????????????????? | | # #??# #?#+## ##+#?### #???????????????????? | | ## #??# #?#!!# #!!#???# ###?????????????????? | | ##### ##??# #?#!!+ +!!#???# " #?????????????????? | | #???# #???# #?#### ####???# " #?????????????????? | | #???# #???# #????# ######## " #?????????????????? | | #???# #???# #????# + ###?????????????????? | | ????# #???# #????# ##### ## #???????????????????? | | ????# #####"##???# #???# ## #???????????????????? | | ?#### #???# #???# # #???????????????????? | | ?# + #####+#####+## #???????????????????? | | ?# ######### =* #???????????????????? | | ?# [#??????# ###########+####???????????????????? | | ?# [#??????# #?????????#Y#??????????????????????? | | ?# [#??????# #?????????#g#??????????????????????? | | ?# [#??????# #???#######@#?#####????????????????? | | ?# [#??????# ###?#""""c#g###!!!#????????????????? | | ?# [#??????# #?#" cp !#????????????????? | | ?####??????# < #?#""""c#####!!!#????????????????? | | ???????????# #?#######???#####????????????????? | | ???????????######????????????????????????????????? | | ?????????????????????????????????????????????????? | | ?????????????????????????????????????????????????? | | ?????????????????????????????????????????????????? | | ?????????????????????????????????????????????????? | | ?????????????????????????????????????????????????? | | ?????????????????????????????????????????????????? | | ?????????????????????????????????????????????????? | | ?????????????????????????????????????????????????? | | ?????????????????????????????????????????????????? | | ?????????????????????????????????????????????????? | | ?????????????????????????????????????????????????? | | ?????????????????????????????????????????????????? | | ?????????????????????????????????????????????????? | | ?????????????????????????????????????????????????? | | ?????????????????????????????????????????????????? | | ?????????????????????????????????????????????????? | | ?????????????????????????????????????????????????? | | ?????????????????????????????????????????????????? | | ?????????????????????????????????????????????????? | +----------------------------------------------------+ Best States ------------- Heat Dissipation 31 Energy Generation 14 Energy Capacity 280 Matter Stores 300 Matter Capacity 300 Sight Range 20 Terrain Scan Range 16 Terrain Scan Density 10 Armor Coverage 375 Evasion (%) 64 Targeting Accuracy 6 Recoil Reduction 4 Salvage Targeting 2 Offensive Hacking 10 Relay Coupler Types 1 Relay Coupler Value 29 Authchip Count 2 Trap Extractor Capacity 4 Item Schematics ----------------- Trap Scanner | -8/Materials | Hacked Robot Schematics ------------------ M-14 Sweeper | -8/Materials | Hacked Fabricated ------------ Nothing Alien Tech Used ----------------- None Achievements -------------- None Challenges ------------ None Game ------ Seed FissionControlSpoofer Manual? 0 Play Time 00:59:07 Cumulative 420.3 hours Start 2023.04.28 @ 13:38:49 End 2023.04.28 @ 15:02:36 Sessions 1 Manual Loads 0 Difficulty Rogue Special Mode None Game No. 457 Rogue 457 Adventurer 0 Explorer 0 Win Type - Total 12 Types 8/0/3/1/0/0/0/0/0 Lore% 82 Gallery% 90 Achievement% 80 Wizard Run 0 Options --------- ASCII 0 Keyboard 0 Movement Numpad Keybinds 0 Fullscreen 1 Font 18/Terminus Map View 76x50 Tactical HUD 1 Map Filters NONE Filters NONE Steam 1 RUN: e2596bf9-7e4c-4a84-a4d2-f8db065a3ede